lending/lending_fUSD_20250501
["ID","MTS","AMOUNT","RATE_DAILY","PERIOD"]
[359559180,1746124245394,-647.0,0.00032877,60]
[359559182,1746124245403,-647.0,0.00032877,60]
[359559184,1746124245414,-647.0,0.00032877,60]
[359559185,1746124245425,-647.0,0.00032877,60]
[359559187,1746124245434,-647.0,0.00032877,60]
[359559189,1746124245444,-647.0,0.00032877,60]
[359559191,1746124245453,-647.0,0.00032877,60]
[359559193,1746124245462,-647.0,0.00032877,60]
[359559195,1746124245472,-647.0,0.00032877,60]
[359559197,1746124245481,-647.0,0.00032877,60]
[359559199,1746124245491,-647.0,0.00032877,60]
[359559201,1746124245500,-647.0,0.00032877,60]
[359559203,1746124245509,-647.0,0.00032877,60]
[359559205,1746124245518,-647.0,0.00032877,60]
[359559207,1746124245527,-668.05604102,0.00032877,60]
[359559209,1746124245536,-500.0,0.00032877,60]
[359559211,1746124245545,-500.0,0.00032877,60]
[359559213,1746124245555,-500.0,0.00032877,60]
[359559215,1746124245564,-500.0,0.00032877,60]
[359559217,1746124245574,-500.0,0.00032877,60]
[359559219,1746124245584,-500.0,0.00032877,60]
[359559221,1746124245593,-500.0,0.00032877,60]
[359559223,1746124245602,-500.0,0.00032877,60]
[359559225,1746124245614,-500.0,0.00032877,60]
[359559226,1746124245623,-500.0,0.00032877,60]
[359559229,1746124245632,-500.0,0.00032877,60]
[359559230,1746124245642,-500.0,0.00032877,60]
[359559232,1746124245651,-500.0,0.00032877,60]
[359559234,1746124245661,-500.0,0.00032877,60]
[359559237,1746124245671,-502.13043462,0.00032877,60]
[359559239,1746124245680,-151.0,0.00032877,7]
[359559241,1746124245690,-151.0,0.00032877,7]
[359559243,1746124245700,-500.0,0.00032877,60]
[359559245,1746124245709,-500.0,0.00032877,60]
[359559247,1746124245718,-500.0,0.00032877,60]
[359559249,1746124245728,-216.81806309,0.00032877,60]
[359559251,1746124245737,-500.0,0.00032877,60]
[359559253,1746124245747,-500.0,0.00032877,60]
[359559255,1746124245756,-500.0,0.00032877,60]
[359559257,1746124245765,-537.79360645,0.00032877,60]
[359559258,1746124245775,-500.0,0.00032877,60]
[359559261,1746124245787,-1348.660206,0.00032877,7]
[359559262,1746124245796,-500.0,0.00032877,60]
[359559264,1746124245806,-500.0,0.00032877,60]
[359559266,1746124245815,-242.167652,0.00032877,7]
[359559268,1746124245824,-150.37920454,0.00032877,60]
[359559270,1746124245834,-500.0,0.00032877,60]
[359559272,1746124245843,-500.0,0.00032877,60]
[359559274,1746124245852,-648.8510479,0.00032877,60]
[359559276,1746124245861,-150.0,0.00032877,60]
[359559278,1746124245871,-150.0,0.00032877,60]
[359559280,1746124245880,-150.0,0.00032877,60]
[359559282,1746124245889,-150.0,0.00032877,60]
[359559284,1746124245898,-1348.660206,0.00032877,7]
[359559286,1746124245907,-155.69463027,0.00032877,60]
[359559288,1746124245916,-500.0,0.00032877,60]
[359559289,1746124245927,-500.0,0.00032877,60]
[359559291,1746124245936,-500.0,0.00032877,60]
[359559293,1746124245946,-500.0,0.00032877,60]
[359559295,1746124245955,-500.0,0.00032877,60]
[359559297,1746124245965,-500.0,0.00032877,60]
[359559299,1746124245973,-500.0,0.00032877,60]
[359559301,1746124245982,-500.0,0.00032877,60]
[359559303,1746124245992,-500.0,0.00032877,60]
[359559305,1746124246001,-611.74141226,0.00032877,60]
[359559307,1746124246010,-277.63380447,0.00032877,60]
[359559309,1746124246019,-150.0,0.00032877,60]
[359559311,1746124246028,-150.0,0.00032877,60]
[359559313,1746124246037,-151.62912378,0.00032877,60]
[359559315,1746124246046,-150.0,0.00032877,60]
[359559316,1746124246055,-150.0,0.00032877,60]
[359559318,1746124246064,-202.04117953,0.00032877,60]
[359559320,1746124246073,-151.0,0.00032877,7]
[359559322,1746124246083,-151.0,0.00032877,7]
[359559324,1746124246092,-199.703088,0.00032877,7]
[359559326,1746124246101,-199.703088,0.00032877,7]
[359559328,1746124246111,-579.520594,0.00032877,7]
[359559330,1746124246124,-579.520594,0.00032877,7]
[359559333,1746124246134,-175.431605,0.00032877,7]
[359559334,1746124246143,-150.0,0.00032877,60]
[359559335,1746124246153,-175.431605,0.00032877,7]
[359559337,1746124246163,-150.0,0.00032877,60]
[359559339,1746124246173,-248.44913138,0.00032877,60]
[359559341,1746124246184,-150.0,0.00032877,60]
[359559343,1746124246195,-202.70937572,0.00032877,60]
[359559346,1746124246204,-500.0,0.00032877,8]
[359559348,1746124246214,-600.82178875,0.00032877,8]
[359559350,1746124246223,-500.0,0.00032877,60]
[359559352,1746124246233,-500.0,0.00032877,60]
[359559354,1746124246242,-500.0,0.00032877,60]
[359559356,1746124246251,-500.0,0.00032877,60]
[359559358,1746124246260,-500.0,0.00032877,60]
[359559359,1746124246270,-500.0,0.00032877,60]
[359559361,1746124246280,-500.0,0.00032877,60]
[359559363,1746124246288,-500.0,0.00032877,60]
[359559365,1746124246297,-500.0,0.00032877,60]
[359559367,1746124246307,-500.0,0.00032877,60]
[359559369,1746124246316,-500.0,0.00032877,60]
[359559371,1746124246326,-500.0,0.00032877,60]
[359559373,1746124246335,-500.0,0.00032877,60]
[359559375,1746124246345,-500.0,0.00032877,60]
[359559377,1746124246354,-500.0,0.00032877,60]
[359559379,1746124246363,-500.0,0.00032877,60]
[359559381,1746124246372,-500.0,0.00032877,60]
[359559382,1746124246382,-375.0,0.00032877,60]
[359559385,1746124246392,-150.0,0.00032877,60]
[359559387,1746124246402,-150.0,0.00032877,60]
[359559388,1746124246411,-256.47834396,0.00032877,60]
[359559390,1746124246421,-500.0,0.00032877,2]
[359559392,1746124246430,-500.0,0.00032877,2]
[359559394,1746124246439,-500.0,0.00032877,2]
[359559396,1746124246449,-500.0,0.00032877,2]
[359559398,1746124246458,-500.0,0.00032877,2]
[359559400,1746124246467,-500.0,0.00032877,2]
[359559402,1746124246476,-500.0,0.00032877,2]
[359559404,1746124246486,-500.0,0.00032877,2]
[359559406,1746124246495,-500.0,0.00032877,2]
[359559408,1746124246505,-500.0,0.00032877,2]
[359559410,1746124246514,-500.0,0.00032877,2]
[359559412,1746124246522,-500.0,0.00032877,2]
[359559413,1746124246531,-500.0,0.00032877,2]
[359559415,1746124246540,-500.0,0.00032877,2]
[359559417,1746124246549,-500.0,0.00032877,2]
[359559419,1746124246559,-500.0,0.00032877,2]
[359559421,1746124246568,-500.0,0.00032877,2]
[359559423,1746124246577,-500.0,0.00032877,2]
[359559425,1746124246587,-500.0,0.00032877,2]
[359559427,1746124246596,-244.0279571,0.00032877,2]
[359559429,1746124246605,-500.0,0.00032877,60]
[359559431,1746124246615,-500.0,0.00032877,60]
[359559433,1746124246624,-513.09517222,0.00032877,60]
[359559435,1746124246634,-150.0,0.00032877,60]
[359559437,1746124246643,-162.51778208,0.00032877,60]
[359559439,1746124246651,-500.0,0.00032877,60]
[359559441,1746124246661,-500.0,0.00032877,60]
[359559443,1746124246670,-500.0,0.00032877,60]
[359559445,1746124246679,-500.0,0.00032877,60]
[359559447,1746124246689,-500.0,0.00032877,60]
[359559448,1746124246698,-500.0,0.00032877,60]
[359559450,1746124246707,-500.0,0.00032877,60]
[359559452,1746124246716,-500.0,0.00032877,60]
[359559454,1746124246726,-500.0,0.00032877,60]
[359559456,1746124246737,-500.0,0.00032877,60]
[359559458,1746124246746,-167.01261664,0.00032877,60]
[359559460,1746124246756,-150.0,0.00032877,60]
[359559462,1746124246766,-150.0,0.00032877,60]
[359559464,1746124246775,-150.0,0.00032877,60]
[359559466,1746124246785,-260.35998093,0.00032877,60]
[359559468,1746124246797,-150.0,0.00032877,60]
[359559470,1746124246807,-155.31386469,0.00032877,60]
[359559472,1746124246817,-500.0,0.00032877,60]
[359559474,1746124246826,-500.0,0.00032877,60]
[359559476,1746124246835,-585.2621651,0.00032877,60]
[359559478,1746124246845,-150.0,0.00032877,60]
[359559480,1746124246855,-150.0,0.00032877,60]
[359559482,1746124246864,-154.14629039,0.00032877,60]
[359559484,1746124246874,-150.32640287,0.00032877,60]
[359559486,1746124246884,-151.0,0.00032877,7]
[359559488,1746124246894,-161.81251372,0.00032877,60]
[359559490,1746124246904,-500.0,0.00032877,60]
[359559492,1746124246913,-500.0,0.00032877,60]
[359559494,1746124246923,-500.0,0.00032877,60]
[359559496,1746124246932,-500.0,0.00032877,60]
[359559498,1746124246942,-500.0,0.00032877,60]
[359559500,1746124246952,-500.0,0.00032877,60]
[359559502,1746124246961,-500.0,0.00032877,60]
[359559504,1746124246970,-500.0,0.00032877,60]
[359559506,1746124246980,-500.0,0.00032877,60]
[359559508,1746124246989,-500.0,0.00032877,60]
[359559510,1746124246998,-500.0,0.00032877,60]
[359559512,1746124247008,-500.0,0.00032877,60]
[359559513,1746124247017,-500.0,0.00032877,60]
[359559515,1746124247027,-500.0,0.00032877,60]
[359559517,1746124247036,-151.0,0.00032877,7]
[359559519,1746124247046,-500.0,0.00032877,60]
[359559521,1746124247055,-500.0,0.00032877,60]
[359559523,1746124247065,-500.0,0.00032877,60]
[359559525,1746124247074,-500.0,0.00032877,60]
[359559527,1746124247083,-344.24051477,0.00032877,60]
[359559529,1746124247093,-500.0,0.00032877,60]
[359559531,1746124247102,-500.0,0.00032877,60]
[359559533,1746124247112,-500.0,0.00032877,60]
[359559535,1746124247124,-500.0,0.00032877,60]
[359559537,1746124247133,-500.0,0.00032877,60]
[359559539,1746124247143,-500.0,0.00032877,60]
[359559541,1746124247152,-500.0,0.00032877,60]
[359559543,1746124247162,-500.0,0.00032877,60]
[359559545,1746124247172,-500.0,0.00032877,60]
[359559546,1746124247182,-500.0,0.00032877,60]
[359559547,1746124247192,-500.0,0.00032877,60]
[359559548,1746124247202,-500.0,0.00032877,60]
[359559549,1746124247211,-500.0,0.00032877,60]
[359559550,1746124247221,-500.0,0.00032877,60]
[359559551,1746124247230,-500.0,0.00032877,60]
[359559552,1746124247240,-500.0,0.00032877,60]
[359559553,1746124247250,-558.31870159,0.00032877,60]
[359559554,1746124247259,-500.0,0.00032877,60]
[359559556,1746124247269,-500.0,0.00032877,60]
[359559558,1746124247279,-500.0,0.00032877,60]
[359559560,1746124247289,-500.0,0.00032877,60]
[359559562,1746124247298,-500.0,0.00032877,60]
[359559564,1746124247308,-500.0,0.00032877,60]
[359559566,1746124247318,-409.0,0.00032877,60]
[359559587,1746124247505,-150.0,0.00032877,60]
[359559589,1746124247521,-152.89420589,0.00032877,60]
[359559591,1746124247530,-500.0,0.00032877,60]
[359559593,1746124247540,-500.0,0.00032877,60]
[359559595,1746124247549,-397.84872192,0.00032877,60]
[359559597,1746124247559,-150.0,0.00032877,2]
[359559599,1746124247568,-500.0,0.00032877,60]
[359559601,1746124247578,-500.0,0.00032877,60]
[359559603,1746124247588,-500.0,0.00032877,60]
[359559605,1746124247597,-500.0,0.00032877,60]
[359559607,1746124247606,-500.0,0.00032877,60]
[359559609,1746124247615,-500.0,0.00032877,60]
[359559611,1746124247626,-500.0,0.00032877,60]
[359559613,1746124247636,-500.0,0.00032877,60]
[359559615,1746124247645,-330.00052948,0.00032877,60]
[359559617,1746124247654,-500.0,0.00032877,60]
[359559619,1746124247664,-500.0,0.00032877,60]
[359559621,1746124247673,-500.0,0.00032877,60]
[359559623,1746124247683,-500.0,0.00032877,60]
[359559625,1746124247693,-500.0,0.00032877,60]
[359559627,1746124247702,-500.0,0.00032877,60]
[359559629,1746124247712,-500.0,0.00032877,60]
[359559631,1746124247721,-500.0,0.00032877,60]
[359559633,1746124247730,-500.0,0.00032877,60]
[359559635,1746124247740,-500.0,0.00032877,60]
[359559637,1746124247750,-500.0,0.00032877,60]
[359559639,1746124247761,-500.0,0.00032877,60]
[359559641,1746124247771,-500.0,0.00032877,60]
[359559644,1746124247781,-256.34199703,0.00032877,60]
[359559645,1746124247792,-150.0,0.00032877,2]
[359559647,1746124247802,-500.0,0.00032877,60]
[359559649,1746124247812,-500.0,0.00032877,60]
[359559651,1746124247823,-500.0,0.00032877,60]
[359559654,1746124247833,-500.0,0.00032877,60]
[359559656,1746124247843,-500.0,0.00032877,60]
[359559658,1746124247854,-500.0,0.00032877,60]
[359559659,1746124247864,-500.0,0.00032877,60]
[359559662,1746124247874,-500.0,0.00032877,60]
[359559664,1746124247885,-500.0,0.00032877,60]
[359559666,1746124247895,-500.0,0.00032877,60]
[359559668,1746124247905,-500.0,0.00032877,60]
[359559670,1746124247914,-500.0,0.00032877,60]
[359559672,1746124247925,-558.0,0.00032877,60]
[359559674,1746124247935,-500.0,0.00032877,60]
[359559676,1746124247945,-150.0,0.00032877,2]
[359559678,1746124247954,-500.0,0.00032877,60]
[359559680,1746124247963,-500.0,0.00032877,60]
[359559682,1746124247973,-500.0,0.00032877,60]
[359559684,1746124247983,-500.0,0.00032877,60]
[359559686,1746124247993,-500.0,0.00032877,60]
[359559688,1746124248003,-500.0,0.00032877,60]
[359559690,1746124248013,-639.40042874,0.00032877,60]
[359559692,1746124248022,-1220.0,0.00032877,60]
[359559694,1746124248032,-1220.0,0.00032877,60]
[359559696,1746124248041,-1169.0,0.00032877,60]
[359559698,1746124248050,-1169.0,0.00032877,60]
[359559700,1746124248060,-1169.0,0.00032877,60]
[359559702,1746124248070,-1220.0,0.00032877,60]
[359559704,1746124248081,-1169.0,0.00032877,60]
[359559706,1746124248090,-1220.0,0.00032877,60]
[359559708,1746124248101,-1169.0,0.00032877,60]
[359559710,1746124248112,-1220.0,0.00032877,60]
[359559712,1746124248125,-1169.0,0.00032877,60]
[359559714,1746124248135,-1169.0,0.00032877,60]
[359559716,1746124248145,-1220.0,0.00032877,60]
[359559718,1746124248155,-1169.0,0.00032877,60]
[359559720,1746124248164,-1220.0,0.00032877,60]
[359559722,1746124248175,-1169.0,0.00032877,60]
[359559724,1746124248185,-1220.0,0.00032877,60]
[359559726,1746124248196,-1169.0,0.00032877,60]
[359559728,1746124248206,-1169.0,0.00032877,60]
[359559730,1746124248215,-1220.0,0.00032877,60]
[359559732,1746124248224,-1169.0,0.00032877,60]
[359559734,1746124248234,-1220.0,0.00032877,60]
[359559736,1746124248243,-1169.0,0.00032877,60]
[359559738,1746124248252,-1220.0,0.00032877,60]
[359559740,1746124248262,-167.911093,0.00032877,7]
[359559742,1746124248272,-203.267613,0.00032877,7]
[359559744,1746124248281,-203.267613,0.00032877,7]
[359559746,1746124248291,-151.0,0.00032877,7]
[359559748,1746124248301,-151.0,0.00032877,7]
[359559750,1746124248311,-2296.0,0.00032877,60]
[359559752,1746124248321,-204.10556556,0.0003293,30]
[359559754,1746124248330,-3527.47215278,0.00032967,2]
[359559756,1746124248340,-564.03684431,0.00033,120]
[359559758,1746124248350,-4561.98759854,0.00033,2]
[359559760,1746124248360,-240.0,0.00033,2]
[359559762,1746124248370,-500.0,0.00033005,10]
[359559764,1746124248379,-267.46074303,0.00033029,2]
[359559766,1746124248389,-216.8187967,0.000331,2]
[359559768,1746124248399,-166.66,0.00033123,2]
[359559770,1746124248409,-252.44104385,0.00033142,15]
[359559772,1746124248418,-1000.0,0.00033165,2]
[359559774,1746124248429,-200.0,0.00033196,2]
[359559776,1746124248439,-200.0,0.00033205,2]
[359559778,1746124248449,-200.0,0.00033205,2]
[359559780,1746124248458,-150.0,0.00033309,2]
[359559782,1746124248468,-238.0,0.0003338,2]
[359559784,1746124248477,-1000.0,0.00033403,2]
[359559786,1746124248487,-1170.33504023,0.000335,2]
[359559788,1746124248496,-220.42790173,0.0003352,2]
[359559790,1746124248505,-200.0,0.00033537,2]
[359559792,1746124248514,-200.0,0.00033537,2]
[359559794,1746124248524,-275.9853488,0.00033599,5]
[359559796,1746124248534,-283.12339316,0.00033631,2]
[359559798,1746124248543,-203.0,0.000337,42]
[359559800,1746124248553,-200.0,0.00033872,2]
[359559802,1746124248563,-200.0,0.00033872,2]
[359559804,1746124248573,-2033.18940034,0.00034,2]
[359559806,1746124248583,-200.0,0.00034,120]
[359559808,1746124248592,-155.65,0.00034,2]
[359559810,1746124248602,-155.65,0.00034,2]
[359559812,1746124248612,-155.65,0.00034,2]
[359559814,1746124248622,-155.65,0.00034,2]
[359559816,1746124248632,-155.65,0.00034,2]
[359559818,1746124248642,-152.0,0.00034101,3]
[359559820,1746124248652,-150.0,0.00034102,2]
[359559822,1746124248662,-500.0,0.00034105,5]
[359559824,1746124248673,-500.0,0.00034105,5]
[359559826,1746124248682,-500.0,0.00034105,5]
[359559828,1746124248692,-166.66,0.00034118,2]
[359559830,1746124248702,-500.0,0.00034122,120]
[359559832,1746124248712,-200.0,0.00034211,2]
[359559834,1746124248723,-200.0,0.00034211,2]
[359559836,1746124248732,-162.28,0.00034246,2]
[359559838,1746124248742,-277.35679052,0.00034398,2]
[359559840,1746124248752,-238.0,0.000344,2]
[359559842,1746124248763,-275.9853488,0.00034421,6]
[359559844,1746124248773,-283.12339316,0.00034485,2]
[359559846,1746124248783,-159571.48523431,0.0003449,7]
[359559848,1746124248793,-203.267613,0.0003449,7]
[359559850,1746124248804,-203.267613,0.0003449,7]
[359559852,1746124248814,-151.0,0.0003449,7]
[359559854,1746124248824,-151.0,0.0003449,7]
[359559856,1746124248835,-500.0,0.00034499,10]
[359559858,1746124248845,-241.87807769,0.00034499,10]
[359559860,1746124248855,-500.0,0.00034499,10]
[359559862,1746124248865,-500.0,0.00034499,10]
[359559864,1746124248875,-300.0,0.00034499,10]
[359559866,1746124248886,-500.0,0.00034499,10]
[359559869,1746124248897,-500.0,0.00034499,10]
[359559871,1746124248907,-500.0,0.00034499,10]
[359559873,1746124248917,-464.58445906,0.00034499,10]
[359559875,1746124248927,-150.0,0.00034499,3]
[359559877,1746124248937,-151.0,0.000345,7]
[359559879,1746124248947,-151.0,0.000345,7]
[359559881,1746124248957,-151.0,0.000345,7]
[359559883,1746124248967,-163.39993,0.000345,7]
[359559885,1746124248977,-151.0,0.000345,7]
[359559887,1746124248987,-269.022701,0.000345,7]
[359559889,1746124248996,-151.0,0.000345,7]
[359559891,1746124249006,-151.0,0.000345,7]
[359559893,1746124249016,-200.553216,0.000345,7]
[359559895,1746124249026,-151.0,0.000345,7]
[359559897,1746124249035,-513.870771,0.000345,7]
[359559899,1746124249045,-513.870771,0.000345,7]
[359559901,1746124249055,-151.0,0.000345,7]
[359559903,1746124249064,-151.0,0.000345,7]
[359559905,1746124249074,-209.31637,0.000345,7]
[359559907,1746124249083,-151.0,0.000345,7]
[359559909,1746124249093,-151.0,0.000345,7]
[359559911,1746124249103,-151.0,0.000345,7]
[359559913,1746124249114,-326.680385,0.000345,7]
[359559915,1746124249125,-151.0,0.000345,7]
[359559917,1746124249135,-326.680385,0.000345,7]
[359559919,1746124249144,-151.0,0.000345,7]
[359559921,1746124249155,-151.0,0.000345,7]
[359559923,1746124249164,-151.0,0.000345,7]
[359559925,1746124249174,-151.0,0.000345,7]
[359559927,1746124249184,-160.325611,0.000345,7]
[359559929,1746124249195,-160.325611,0.000345,7]
[359559931,1746124249205,-391.468518,0.000345,7]
[359559933,1746124249215,-539.966518,0.000345,7]
[359559935,1746124249225,-539.966518,0.000345,7]
[359559937,1746124249234,-151.0,0.000345,7]
[359559939,1746124249243,-151.0,0.000345,7]
[359559941,1746124249252,-151.0,0.000345,7]
[359559943,1746124249262,-151.0,0.000345,7]
[359559944,1746124249272,-1348.660206,0.000345,7]
[359559946,1746124249281,-1348.660206,0.000345,7]
[359559948,1746124249291,-151.0,0.000345,7]
[359559950,1746124249301,-151.0,0.000345,7]
[359559952,1746124249311,-199.703088,0.000345,7]
[359559954,1746124249320,-199.703088,0.000345,7]
[359559956,1746124249330,-579.520594,0.000345,7]
[359559958,1746124249340,-579.520594,0.000345,7]
[359559960,1746124249349,-175.431605,0.000345,7]
[359559962,1746124249359,-175.431605,0.000345,7]
[359559964,1746124249368,-175.431605,0.000345,7]
[359559966,1746124249378,-175.431605,0.000345,7]
[359559968,1746124249387,-151.0,0.000345,7]
[359559970,1746124249397,-151.0,0.000345,7]
[359559972,1746124249406,-151.0,0.000345,7]
[359559974,1746124249416,-285.405739,0.000345,7]
[359559976,1746124249427,-203.267613,0.000345,7]
[359559978,1746124249436,-203.267613,0.000345,7]
[359559979,1746124249445,-185.051223,0.000345,7]
[359559980,1746124249454,-151.0,0.000345,7]
[359559981,1746124249464,-414941.97254504,0.000345,15]
[359559982,1746124249474,-74380.0633471,0.000345,15]
[359559983,1746124249483,-150.0,0.00034548,10]
[359559984,1746124249493,-3527.47215278,0.000346,2]
[359559985,1746124249502,-500.0,0.00034673,5]
[359559986,1746124249511,-502.31288123,0.00034673,5]
[359559987,1746124249521,-151.0,0.00034689,7]
[359559988,1746124249530,-725.91930331,0.0003469,2]
[359559989,1746124249539,-500.0,0.00034699,10]
[359559990,1746124249549,-500.0,0.00034699,10]
[359559991,1746124249558,-500.0,0.00034699,10]
[359559992,1746124249567,-500.0,0.00034699,10]
[359559993,1746124249577,-500.0,0.00034699,10]
[359559994,1746124249586,-500.0,0.00034699,10]
[359559995,1746124249596,-500.0,0.00034699,10]
[359559996,1746124249605,-500.0,0.00034699,10]
[359559997,1746124249615,-500.0,0.00034699,10]
[359559998,1746124249625,-500.0,0.00034699,10]
[359559999,1746124249635,-500.0,0.00034699,10]
[359560000,1746124249644,-300.0,0.00034699,10]
[359560001,1746124249654,-500.0,0.00034699,10]
[359560002,1746124249664,-500.0,0.00034699,10]
[359560003,1746124249676,-500.0,0.00034699,10]
[359560004,1746124249686,-151.0,0.00034699,7]
[359560005,1746124249695,-150.0,0.00034699,3]
[359560006,1746124249705,-150.0,0.00034699,3]
[359560007,1746124249715,-160.0,0.000347,45]
[359560008,1746124249724,-1294413.09493032,0.000347,2]
[359560009,1746124250357,-335.16856376,0.000347,2]
[359560010,1746124250383,-60627.69868768,0.000347,2]
[359560011,1746124250394,-14874.32037487,0.000347,2]
[359560012,1746124250404,-151.0,0.000347,7]
[359560013,1746124250414,-151.0,0.000347,7]
[359560014,1746124250424,-151.0,0.000347,7]
[359560015,1746124250434,-269.022701,0.000347,7]
[359560016,1746124250443,-151.0,0.000347,7]
[359560017,1746124250452,-151.0,0.000347,7]
[359560018,1746124250462,-513.870771,0.000347,7]
[359560019,1746124250471,-513.870771,0.000347,7]
[359560020,1746124250481,-151.0,0.000347,7]
[359560021,1746124250491,-151.0,0.000347,7]
[359560022,1746124250501,-151.0,0.000347,7]
[359560023,1746124250511,-151.0,0.000347,7]
[359560024,1746124250520,-151.0,0.000347,7]
[359560025,1746124250530,-326.680385,0.000347,7]
[359560026,1746124250540,-151.0,0.000347,7]
[359560027,1746124250549,-326.680385,0.000347,7]
[359560028,1746124250559,-165.823081,0.000347,7]
[359560029,1746124250568,-151.0,0.000347,7]
[359560030,1746124250578,-151.0,0.000347,7]
[359560031,1746124250588,-151.0,0.000347,7]
[359560032,1746124250598,-160.325611,0.000347,7]
[359560033,1746124250608,-160.325611,0.000347,7]
[359560034,1746124250617,-391.468518,0.000347,7]
[359560035,1746124250627,-539.966518,0.000347,7]
[359560036,1746124250636,-539.966518,0.000347,7]
[359560037,1746124250646,-151.0,0.000347,7]
[359560038,1746124250656,-151.0,0.000347,7]
[359560039,1746124250665,-230.042491,0.000347,7]
[359560040,1746124250675,-151.0,0.000347,7]
[359560041,1746124250685,-1348.660206,0.000347,7]
[359560042,1746124250694,-1348.660206,0.000347,7]
[359560043,1746124250704,-151.0,0.000347,7]
[359560044,1746124250713,-151.0,0.000347,7]
[359560045,1746124250723,-199.703088,0.000347,7]
[359560046,1746124250732,-199.703088,0.000347,7]
[359560047,1746124250742,-579.520594,0.000347,7]
[359560048,1746124250751,-579.520594,0.000347,7]
[359560049,1746124250760,-175.431605,0.000347,7]
[359560050,1746124250770,-175.431605,0.000347,7]
[359560051,1746124250779,-151.0,0.000347,7]
[359560052,1746124250789,-203.267613,0.000347,7]
[359560053,1746124250810,-203.267613,0.000347,7]
[359560054,1746124250819,-151.0,0.000347,7]
[359560055,1746124250829,-5128.12773908,0.000348,2]
[359560056,1746124250839,-263.09905844,0.00034886,10]
[359560057,1746124250849,-150.0,0.00034895,2]
[359560058,1746124250858,-150.0,0.00034898,3]
[359560059,1746124250867,-500.0,0.00034899,10]
[359560060,1746124250877,-190.19980256,0.00034899,10]
[359560061,1746124250887,-167.99267196,0.00034899,10]
[359560062,1746124250896,-500.0,0.00034899,10]
[359560063,1746124250906,-500.0,0.00034899,10]
[359560064,1746124250916,-500.0,0.00034899,10]
[359560065,1746124250926,-500.0,0.00034899,10]
[359560066,1746124250935,-500.0,0.00034899,10]
[359560067,1746124250944,-56787.25,0.00034899,2]
[359560068,1746124250954,-150.0,0.00034899,3]
[359560069,1746124250963,-150.0,0.00034899,3]
[359560070,1746124250973,-1442930.14439746,0.000349,2]
[359560071,1746124251496,-7791.3417746,0.000349,2]
[359560072,1746124251508,-4291.32023899,0.000349,2]
[359560083,1746124252442,-878.0,0.00022805,2]
[359560084,1746124252453,-293.24152197,0.00032876,2]
[359560085,1746124252463,-77580.36806048,0.000349,2]
[359560086,1746124252475,-151.0,0.000349,7]
[359560087,1746124252486,-151.0,0.000349,7]
[359560088,1746124252496,-210.723357,0.000349,7]
[359560089,1746124252506,-269.022701,0.000349,7]